fUSD/lending_fUSD_20250530
["ID","MTS","AMOUNT","RATE_DAILY","PERIOD"]
[363120465,1748590238695,-668.65185757,0.00021904,2]
[363120468,1748590238705,-151.0,0.00021904,2]
[363120469,1748590238714,-300.0,0.00021904,2]
[363120471,1748590238724,-300.0,0.00021904,2]
[363120473,1748590238737,-430.09911732,0.00021904,2]
[363120475,1748590238747,-646.049,0.00021904,2]
[363120477,1748590238757,-357.60382575,0.00021907,2]
[363120479,1748590238769,-500.0,0.00021916,2]
[363120481,1748590238779,-617.88943916,0.00021916,2]
[363120483,1748590238789,-500.0,0.00021916,2]
[363120485,1748590238798,-298.6416272,0.00021916,2]
[363120487,1748590238808,-500.0,0.00021916,2]
[363120490,1748590238818,-455.28714719,0.00021916,2]
[363120493,1748590238828,-430.11857832,0.00021916,2]
[363120495,1748590238845,-172.68589696,0.00021916,2]
[363120497,1748590238857,-500.0,0.00021916,2]
[363120499,1748590238867,-500.0,0.00021916,2]
[363120501,1748590238877,-204.69806397,0.00021916,2]
[363120503,1748590238886,-167.42224185,0.00021916,2]
[363120505,1748590238895,-12939.0,0.00021916,2]
[363120507,1748590238904,-420.0,0.00021917,2]
[363120509,1748590238914,-420.0,0.00021917,2]
[363120511,1748590238923,-1021.85,0.00021917,2]
[363120513,1748590238932,-420.0,0.00021917,2]
[363120515,1748590238941,-506.03824378,0.00021917,2]
[363120517,1748590238950,-505.55663535,0.00021917,2]
[363120519,1748590238959,-420.0,0.00021917,2]
[363120521,1748590238969,-505.86401036,0.00021917,2]
[363120523,1748590238981,-420.0,0.00021917,2]
[363120525,1748590238991,-500.0,0.00021917,2]
[363120527,1748590239000,-420.0,0.00021917,2]
[363120529,1748590239009,-420.0,0.00021917,2]
[363120531,1748590239019,-420.0,0.00021917,2]
[363120533,1748590239028,-420.0,0.00021917,2]
[363120535,1748590239038,-362.72556154,0.00021917,2]
[363120537,1748590239047,-503.13804434,0.00021917,2]
[363120539,1748590239056,-500.0,0.00021917,2]
[363120541,1748590239067,-680.53,0.00021917,2]
[363120543,1748590239077,-500.0,0.00021917,2]
[363120545,1748590239087,-420.0,0.00021917,2]
[363120547,1748590239097,-420.0,0.00021917,2]
[363120549,1748590239106,-429.02365213,0.00021917,2]
[363120551,1748590239116,-739.37,0.00021917,2]
[363120552,1748590239125,-420.0,0.00021917,2]
[363120555,1748590239135,-474.03,0.00021917,2]
[363120557,1748590239144,-420.0,0.00021917,2]
[363120559,1748590239154,-498.38,0.00021917,2]
[363120561,1748590239163,-666.45,0.00021917,2]
[363120562,1748590239172,-420.0,0.00021917,2]
[363120564,1748590239181,-420.0,0.00021917,2]
[363120567,1748590239191,-420.0,0.00021917,2]
[363120569,1748590239200,-420.0,0.00021917,2]
[363120570,1748590239209,-480.93,0.00021917,2]
[363120572,1748590239219,-420.0,0.00021917,2]
[363120574,1748590239232,-420.0,0.00021917,2]
[363120577,1748590239242,-505.88206369,0.00021917,2]
[363120579,1748590239251,-420.0,0.00021917,2]
[363120580,1748590239260,-420.0,0.00021917,2]
[363120582,1748590239270,-1014.36,0.00021917,2]
[363120585,1748590239280,-420.0,0.00021917,2]
[363120587,1748590239290,-420.0,0.00021917,2]
[363120589,1748590239299,-585.13,0.00021917,2]
[363120591,1748590239310,-420.0,0.00021917,2]
[363120593,1748590239320,-420.0,0.00021917,2]
[363120595,1748590239330,-502.84881267,0.00021917,2]
[363120597,1748590239340,-420.0,0.00021917,2]
[363120599,1748590239350,-420.0,0.00021917,2]
[363120601,1748590239361,-530.45803274,0.00021917,2]
[363120603,1748590239370,-420.0,0.00021917,2]
[363120605,1748590239380,-649.13,0.00021917,2]
[363120607,1748590239390,-420.0,0.00021917,2]
[363120609,1748590239400,-420.0,0.00021917,2]
[363120611,1748590239409,-420.0,0.00021917,2]
[363120613,1748590239419,-420.0,0.00021917,2]
[363120615,1748590239428,-504.18362721,0.00021917,2]
[363120617,1748590239437,-420.0,0.00021917,2]
[363120619,1748590239446,-501.55169409,0.00021917,2]
[363120621,1748590239457,-505.79703557,0.00021917,2]
[363120623,1748590239466,-420.0,0.00021917,2]
[363120625,1748590239475,-500.0,0.00021917,2]
[363120627,1748590239488,-420.0,0.00021917,2]
[363120629,1748590239498,-420.0,0.00021917,2]
[363120631,1748590239508,-500.0,0.00021917,2]
[363120633,1748590239518,-420.0,0.00021917,2]
[363120635,1748590239527,-1369.72,0.00021917,2]
[363120637,1748590239537,-500.0,0.00021917,2]
[363120639,1748590239546,-186.46508155,0.00021917,2]
[363120641,1748590239555,-420.0,0.00021917,2]
[363120643,1748590239565,-493.16,0.00021917,2]
[363120645,1748590239574,-420.0,0.00021917,2]
[363120647,1748590239584,-424.57219225,0.00021917,2]
[363120649,1748590239594,-782.71,0.00021917,2]
[363120651,1748590239604,-420.0,0.00021917,2]
[363120653,1748590239613,-420.0,0.00021917,2]
[363120655,1748590239623,-420.0,0.00021917,2]
[363120657,1748590239634,-420.0,0.00021917,2]
[363120659,1748590239643,-420.0,0.00021917,2]
[363120661,1748590239652,-519.80055057,0.00021917,2]
[363120663,1748590239662,-420.0,0.00021917,2]
[363120665,1748590239672,-420.0,0.00021917,2]
[363120667,1748590239682,-596.05,0.00021917,2]
[363120669,1748590239691,-506.21,0.00021917,2]
[363120671,1748590239701,-420.0,0.00021917,2]
[363120673,1748590239710,-500.0,0.00021917,2]
[363120675,1748590239719,-500.0,0.00021917,2]
[363120677,1748590239733,-420.0,0.00021917,2]
[363120679,1748590239742,-500.0,0.00021917,2]
[363120681,1748590239755,-500.0,0.00021917,2]
[363120683,1748590239765,-420.0,0.00021917,2]
[363120685,1748590239774,-572.2,0.00021917,2]
[363120687,1748590239784,-420.0,0.00021917,2]
[363120689,1748590239795,-420.0,0.00021917,2]
[363120691,1748590239805,-420.0,0.00021917,2]
[363120693,1748590239815,-420.0,0.00021917,2]
[363120695,1748590239824,-506.67937776,0.00021917,2]
[363120697,1748590239834,-420.0,0.00021917,2]
[363120699,1748590239844,-420.0,0.00021917,2]
[363120701,1748590239853,-500.0,0.00021917,2]
[363120703,1748590239862,-500.0,0.00021917,2]
[363120705,1748590239872,-500.0,0.00021917,2]
[363120707,1748590239882,-420.0,0.00021917,2]
[363120709,1748590239892,-426.58148416,0.00021917,2]
[363120711,1748590239901,-420.0,0.00021917,2]
[363120713,1748590239915,-151.22567738,0.00021917,2]
[363120715,1748590239924,-422.06665195,0.00021917,2]
[363120717,1748590239933,-420.0,0.00021917,2]
[363120719,1748590239943,-460.63,0.00021917,2]
[363120721,1748590239953,-420.0,0.00021917,2]
[363120723,1748590239963,-420.0,0.00021917,2]
[363120725,1748590239973,-500.0,0.00021917,2]
[363120727,1748590239988,-506.25502807,0.00021917,2]
[363120729,1748590239998,-529.39,0.00021917,2]
[363120731,1748590240008,-420.0,0.00021917,2]
[363120733,1748590240018,-500.0,0.00021917,2]
[363120735,1748590240027,-420.0,0.00021917,2]
[363120737,1748590240037,-420.0,0.00021917,2]
[363120739,1748590240050,-420.0,0.00021917,2]
[363120741,1748590240060,-420.0,0.00021917,2]
[363120743,1748590240070,-421.74,0.00021917,2]
[363120745,1748590240081,-503.73152989,0.00021917,2]
[363120747,1748590240091,-420.0,0.00021917,2]
[363120749,1748590240101,-500.0,0.00021917,2]
[363120751,1748590240110,-420.0,0.00021917,2]
[363120754,1748590240119,-278.67,0.00021917,2]
[363120756,1748590240129,-420.0,0.00021917,2]
[363120758,1748590240139,-420.0,0.00021917,2]
[363120760,1748590240149,-420.0,0.00021917,2]
[363120762,1748590240158,-420.0,0.00021917,2]
[363120764,1748590240168,-420.0,0.00021917,2]
[363120766,1748590240178,-420.0,0.00021917,2]
[363120769,1748590240188,-420.0,0.00021917,2]
[363120770,1748590240197,-300.0,0.00021917,2]
[363120773,1748590240207,-500.0,0.00021917,2]
[363120775,1748590240217,-613.0,0.00021917,2]
[363120777,1748590240226,-420.0,0.00021917,2]
[363120779,1748590240241,-909.23,0.00021917,2]
[363120781,1748590240251,-420.0,0.00021917,2]
[363120783,1748590240261,-420.0,0.00021917,2]
[363120785,1748590240271,-420.0,0.00021917,2]
[363120787,1748590240280,-420.0,0.00021917,2]
[363120789,1748590240289,-631.24,0.00021917,2]
[363120791,1748590240299,-500.0,0.00021917,2]
[363120793,1748590240308,-420.0,0.00021917,2]
[363120795,1748590240317,-500.0,0.00021917,2]
[363120797,1748590240326,-420.0,0.00021917,2]
[363120799,1748590240335,-440.98,0.00021917,2]
[363120801,1748590240345,-1243.22,0.00021917,2]
[363120803,1748590240355,-500.0,0.00021917,2]
[363120805,1748590240365,-420.0,0.00021917,2]
[363120807,1748590240375,-420.0,0.00021917,2]
[363120809,1748590240384,-420.0,0.00021917,2]
[363120811,1748590240394,-420.0,0.00021917,2]
[363120813,1748590240403,-500.0,0.00021917,2]
[363120815,1748590240412,-504.7075415,0.00021917,2]
[363120817,1748590240421,-466.55157668,0.00021917,2]
[363120819,1748590240431,-420.0,0.00021917,2]
[363120821,1748590240440,-420.0,0.00021917,2]
[363120823,1748590240449,-503.14248089,0.00021917,2]
[363120825,1748590240459,-420.0,0.00021917,2]
[363120827,1748590240468,-561.25,0.00021917,2]
[363120829,1748590240478,-420.0,0.00021917,2]
[363120831,1748590240490,-503.70599313,0.00021917,2]
[363120833,1748590240499,-420.0,0.00021917,2]
[363120835,1748590240508,-420.0,0.00021917,2]
[363120837,1748590240518,-420.0,0.00021917,2]
[363120839,1748590240527,-503.87081854,0.00021917,2]
[363120841,1748590240536,-420.0,0.00021917,2]
[363120843,1748590240545,-420.0,0.00021917,2]
[363120845,1748590240555,-420.0,0.00021917,2]
[363120847,1748590240565,-420.0,0.00021917,2]
[363120849,1748590240575,-420.0,0.00021917,2]
[363120851,1748590240585,-420.0,0.00021917,2]
[363120853,1748590240594,-420.0,0.00021917,2]
[363120855,1748590240603,-420.0,0.00021917,2]
[363120857,1748590240613,-420.0,0.00021917,2]
[363120859,1748590240623,-500.0,0.00021917,2]
[363120861,1748590240632,-420.0,0.00021917,2]
[363120863,1748590240641,-420.0,0.00021917,2]
[363120865,1748590240650,-420.0,0.00021917,2]
[363120867,1748590240659,-420.0,0.00021917,2]
[363120869,1748590240669,-420.0,0.00021917,2]
[363120871,1748590240678,-420.0,0.00021917,2]
[363120873,1748590240687,-500.0,0.00021917,2]
[363120875,1748590240696,-420.0,0.00021917,2]
[363120877,1748590240706,-1153.48,0.00021917,2]
[363120879,1748590240715,-420.0,0.00021917,2]
[363120881,1748590240724,-420.0,0.00021917,2]
[363120883,1748590240737,-420.0,0.00021917,2]
[363120885,1748590240748,-420.0,0.00021917,2]
[363120887,1748590240758,-420.0,0.00021917,2]
[363120889,1748590240771,-420.0,0.00021917,2]
[363120891,1748590240781,-490.36,0.00021917,2]
[363120893,1748590240790,-420.0,0.00021917,2]
[363120895,1748590240799,-448.92,0.00021917,2]
[363120897,1748590240809,-420.0,0.00021917,2]
[363120899,1748590240818,-420.0,0.00021917,2]
[363120901,1748590240827,-420.0,0.00021917,2]
[363120903,1748590240837,-782.02,0.00021917,2]
[363120905,1748590240847,-991.6,0.00021917,2]
[363120907,1748590240857,-420.0,0.00021917,2]
[363120909,1748590240866,-421.21367918,0.00021917,2]
[363120911,1748590240876,-420.0,0.00021917,2]
[363120913,1748590240885,-420.0,0.00021917,2]
[363120915,1748590240895,-420.0,0.00021917,2]
[363120917,1748590240904,-420.0,0.00021917,2]
[363120919,1748590240913,-420.0,0.00021917,2]
[363120921,1748590240922,-439.13,0.00021917,2]
[363120923,1748590240931,-420.0,0.00021917,2]
[363120925,1748590240940,-420.0,0.00021917,2]
[363120927,1748590240949,-420.0,0.00021917,2]
[363120929,1748590240959,-420.0,0.00021917,2]
[363120932,1748590240968,-420.0,0.00021917,2]
[363120934,1748590240978,-500.0,0.00021917,2]
[363120936,1748590240990,-420.0,0.00021917,2]
[363120938,1748590240999,-420.0,0.00021917,2]
[363120940,1748590241008,-420.0,0.00021917,2]
[363120942,1748590241018,-500.62,0.00021917,2]
[363120944,1748590241027,-500.0,0.00021917,2]
[363120946,1748590241036,-420.0,0.00021917,2]
[363120948,1748590241045,-420.0,0.00021917,2]
[363120950,1748590241054,-420.0,0.00021917,2]
[363120952,1748590241063,-420.0,0.00021917,2]
[363120953,1748590241072,-468.94,0.00021917,2]
[363120955,1748590241081,-420.0,0.00021917,2]
[363120958,1748590241091,-420.0,0.00021917,2]
[363120960,1748590241100,-593.28,0.00021917,2]
[363120961,1748590241109,-420.0,0.00021917,2]
[363120963,1748590241119,-420.0,0.00021917,2]
[363120965,1748590241128,-420.0,0.00021917,2]
[363120967,1748590241137,-425.35,0.00021917,2]
[363120969,1748590241146,-420.0,0.00021917,2]
[363120972,1748590241156,-420.0,0.00021917,2]
[363120974,1748590241165,-420.0,0.00021917,2]
[363120976,1748590241174,-420.0,0.00021917,2]
[363120978,1748590241183,-500.0,0.00021917,2]
[363120979,1748590241193,-540.23,0.00021917,2]
[363120982,1748590241202,-420.0,0.00021917,2]
[363120983,1748590241211,-457.6,0.00021917,2]
[363120986,1748590241221,-420.0,0.00021917,2]
[363120988,1748590241232,-420.0,0.00021917,2]
[363120990,1748590241242,-500.0,0.00021917,2]
[363120992,1748590241251,-202.37962199,0.00021917,2]
[363120994,1748590241261,-420.0,0.00021917,2]
[363120996,1748590241270,-420.0,0.00021917,2]
[363120998,1748590241279,-422.53767901,0.00021917,2]
[363121000,1748590241288,-504.41909689,0.00021917,2]
[363121002,1748590241297,-420.0,0.00021917,2]
[363121004,1748590241306,-420.0,0.00021917,2]
[363121006,1748590241316,-420.0,0.00021917,2]
[363121008,1748590241325,-588.17,0.00021917,2]
[363121010,1748590241334,-420.0,0.00021917,2]
[363121012,1748590241343,-420.0,0.00021917,2]
[363121014,1748590241352,-500.0,0.00021917,2]
[363121016,1748590241362,-420.0,0.00021917,2]
[363121018,1748590241372,-434.36,0.00021917,2]
[363121020,1748590241381,-576.14,0.00021917,2]
[363121022,1748590241390,-420.0,0.00021917,2]
[363121024,1748590241399,-420.0,0.00021917,2]
[363121026,1748590241408,-167.69555169,0.00021917,2]
[363121028,1748590241417,-420.0,0.00021917,2]
[363121030,1748590241426,-420.0,0.00021917,2]
[363121032,1748590241435,-420.0,0.00021917,2]
[363121034,1748590241445,-592.6,0.00021917,2]
[363121036,1748590241454,-420.0,0.00021917,2]
[363121038,1748590241464,-716.88,0.00021917,2]
[363121040,1748590241473,-500.0,0.00021917,2]
[363121042,1748590241484,-271.72721888,0.00021917,2]
[363121044,1748590241493,-500.0,0.00021917,2]
[363121046,1748590241502,-503.80554401,0.00021917,2]
[363121048,1748590241511,-420.0,0.00021917,2]
[363121050,1748590241520,-420.0,0.00021917,2]
[363121052,1748590241529,-420.0,0.00021917,2]
[363121054,1748590241539,-420.0,0.00021917,2]
[363121056,1748590241548,-420.0,0.00021917,2]
[363121058,1748590241558,-420.0,0.00021917,2]
[363121060,1748590241567,-444.69,0.00021917,2]
[363121062,1748590241576,-420.0,0.00021917,2]
[363121064,1748590241586,-420.0,0.00021917,2]
[363121066,1748590241595,-420.0,0.00021917,2]
[363121068,1748590241603,-502.03639381,0.00021917,2]
[363121070,1748590241613,-422.95109081,0.00021917,2]
[363121072,1748590241623,-420.0,0.00021917,2]
[363121074,1748590241632,-500.0,0.00021917,2]
[363121076,1748590241641,-505.15987221,0.00021917,2]
[363121078,1748590241651,-420.0,0.00021917,2]
[363121080,1748590241661,-541.62,0.00021917,2]
[363121082,1748590241670,-420.0,0.00021917,2]
[363121084,1748590241680,-420.0,0.00021917,2]
[363121086,1748590241689,-420.0,0.00021917,2]
[363121088,1748590241698,-420.0,0.00021917,2]
[363121090,1748590241708,-500.0,0.00021917,2]
[363121092,1748590241718,-420.0,0.00021917,2]
[363121094,1748590241727,-420.0,0.00021917,2]
[363121096,1748590241738,-420.0,0.00021917,2]
[363121098,1748590241750,-171.33117233,0.00021917,2]
[363121100,1748590241760,-500.0,0.00021917,2]
[363121102,1748590241770,-754.38,0.00021917,2]
[363121104,1748590241779,-502.94330181,0.00021917,2]
[363121106,1748590241791,-420.0,0.00021917,2]
[363121108,1748590241800,-420.0,0.00021917,2]
[363121110,1748590241810,-500.58185605,0.00021917,2]
[363121112,1748590241819,-420.0,0.00021917,2]
[363121114,1748590241829,-420.0,0.00021917,2]
[363121116,1748590241839,-727.94,0.00021917,2]
[363121118,1748590241848,-500.0,0.00021917,2]
[363121120,1748590241857,-420.0,0.00021917,2]
[363121122,1748590241868,-500.0,0.00021917,2]
[363121124,1748590241877,-500.0,0.00021917,2]
[363121126,1748590241888,-420.0,0.00021917,2]
[363121128,1748590241897,-516.17695283,0.00021917,2]
[363121130,1748590241906,-1363.55,0.00021917,2]
[363121131,1748590241916,-420.0,0.00021917,2]
[363121132,1748590241925,-420.0,0.00021917,2]
[363121133,1748590241935,-420.0,0.00021917,2]
[363121134,1748590241944,-420.0,0.00021917,2]
[363121135,1748590241953,-420.0,0.00021917,2]
[363121136,1748590241962,-420.0,0.00021917,2]
[363121140,1748590242182,-501.13905601,0.00021917,2]
[363121141,1748590242192,-500.0,0.00021917,2]
[363121142,1748590242202,-500.0,0.00021917,2]
[363121143,1748590242213,-536.67343719,0.00021917,2]
[363121144,1748590242223,-872.63,0.00021917,2]
[363121145,1748590242235,-502.89248781,0.00021917,2]
[363121146,1748590242245,-2371.83,0.00021917,2]
[363121147,1748590242255,-514.1424552,0.00021917,2]
[363121148,1748590242266,-420.0,0.00021917,2]
[363121149,1748590242275,-420.0,0.00021917,2]
[363121150,1748590242285,-420.0,0.00021917,2]
[363121151,1748590242295,-420.0,0.00021917,2]
[363121152,1748590242305,-500.0,0.00021917,2]
[363121153,1748590242315,-504.42782837,0.00021917,2]
[363121154,1748590242325,-420.0,0.00021917,2]
[363121155,1748590242335,-420.0,0.00021917,2]
[363121156,1748590242346,-420.0,0.00021917,2]
[363121157,1748590242356,-420.0,0.00021917,2]
[363121158,1748590242366,-1620.63,0.00021917,2]
[363121159,1748590242376,-565.83,0.00021917,2]
[363121160,1748590242386,-420.0,0.00021917,2]
[363121161,1748590242396,-815.96,0.00021917,2]
[363121162,1748590242406,-502.75890597,0.00021917,2]
[363121163,1748590242415,-420.0,0.00021917,2]
[363121164,1748590242425,-420.0,0.00021917,2]
[363121165,1748590242435,-420.0,0.00021917,2]
[363121166,1748590242445,-420.0,0.00021917,2]
[363121167,1748590242455,-420.0,0.00021917,2]
[363121168,1748590242465,-1626.2,0.00021917,2]
[363121169,1748590242474,-420.0,0.00021917,2]
[363121170,1748590242485,-500.0,0.00021917,2]
[363121171,1748590242495,-420.0,0.00021917,2]
[363121172,1748590242505,-502.77152193,0.00021917,2]
[363121173,1748590242515,-420.0,0.00021917,2]
[363121174,1748590242525,-420.0,0.00021917,2]
[363121175,1748590242534,-420.0,0.00021917,2]
[363121176,1748590242544,-420.0,0.00021917,2]
[363121177,1748590242554,-420.0,0.00021917,2]
[363121179,1748590242564,-645.86,0.00021917,2]
[363121180,1748590242574,-538.12,0.00021917,2]
[363121182,1748590242584,-500.0,0.00021917,2]
[363121183,1748590242594,-848.69,0.00021917,2]
[363121184,1748590242604,-1190.74,0.00021917,2]
[363121185,1748590242614,-528.37,0.00021917,2]
[363121186,1748590242624,-420.0,0.00021917,2]
[363121187,1748590242634,-501.90838941,0.00021917,2]
[363121188,1748590242644,-420.0,0.00021917,2]
[363121189,1748590242655,-503.04124263,0.00021917,2]
[363121190,1748590242665,-448.63,0.00021917,2]
[363121191,1748590242676,-420.0,0.00021917,2]
[363121192,1748590242686,-500.0,0.00021917,2]
[363121193,1748590242701,-420.0,0.00021917,2]
[363121194,1748590242712,-426.45958641,0.00021917,2]
[363121195,1748590242722,-2806.32,0.00021917,2]
[363121196,1748590242733,-917.29,0.00021917,2]
[363121197,1748590242745,-1017.45,0.00021917,2]
[363121198,1748590242756,-500.0,0.00021917,2]
[363121199,1748590242770,-500.0,0.00021917,2]
[363121200,1748590242781,-420.0,0.00021917,2]
[363121201,1748590242791,-502.16121394,0.00021917,2]
[363121202,1748590242803,-500.0,0.00021917,2]
[363121203,1748590242812,-420.0,0.00021917,2]
[363121204,1748590242823,-420.0,0.00021917,2]
[363121205,1748590242834,-420.0,0.00021917,2]
[363121206,1748590242845,-420.0,0.00021917,2]
[363121207,1748590242856,-420.0,0.00021917,2]
[363121208,1748590242866,-500.0,0.00021917,2]
[363121209,1748590242876,-420.0,0.00021917,2]
[363121210,1748590242887,-1839.83,0.00021917,2]
[363121211,1748590242897,-420.0,0.00021917,2]
[363121212,1748590242908,-365.67340357,0.00021917,2]
[363121213,1748590242919,-718.31,0.00021917,2]
[363121214,1748590242929,-502.4,0.00021917,2]
[363121215,1748590242939,-420.0,0.00021917,2]
[363121216,1748590242949,-420.0,0.00021917,2]
[363121217,1748590242959,-420.0,0.00021917,2]
[363121218,1748590242970,-500.0,0.00021917,2]
[363121219,1748590242980,-500.0,0.00021917,2]
[363121220,1748590242991,-420.0,0.00021917,2]
[363121221,1748590243001,-667.45,0.00021917,2]
[363121222,1748590243011,-1170.82,0.00021917,2]
[363121223,1748590243021,-420.0,0.00021917,2]
[363121224,1748590243030,-420.0,0.00021917,2]
[363121225,1748590243041,-420.0,0.00021917,2]
[363121226,1748590243051,-420.0,0.00021917,2]
[363121227,1748590243060,-420.0,0.00021917,2]
[363121228,1748590243071,-482.59,0.00021917,2]
[363121229,1748590243081,-420.0,0.00021917,2]
[363121230,1748590243092,-420.0,0.00021917,2]
[363121231,1748590243104,-420.0,0.00021917,2]
[363121232,1748590243121,-1094.1,0.00021917,2]
[363121233,1748590243131,-158.578473,0.00021917,2]
[363121234,1748590243141,-1626.93,0.00021917,2]
[363121235,1748590243151,-420.0,0.00021917,2]
[363121236,1748590243161,-420.0,0.00021917,2]
[363121237,1748590243171,-420.0,0.00021917,2]
[363121238,1748590243182,-1363.56,0.00021917,2]
[363121239,1748590243194,-420.0,0.00021917,2]
[363121240,1748590243205,-420.0,0.00021917,2]
[363121241,1748590243216,-500.0,0.00021917,2]
[363121242,1748590243226,-420.0,0.00021917,2]
[363121243,1748590243242,-700.14,0.00021917,2]
[363121244,1748590243253,-420.0,0.00021917,2]
[363121245,1748590243264,-617.71,0.00021917,2]
[363121246,1748590243277,-420.0,0.00021917,2]
[363121247,1748590243288,-420.0,0.00021917,2]
[363121248,1748590243299,-420.0,0.00021917,2]
[363121249,1748590243309,-500.0,0.00021917,2]
[363121250,1748590243319,-483.58629136,0.00021917,2]
[363121251,1748590243330,-420.0,0.00021917,2]
[363121252,1748590243340,-1615.91,0.00021917,2]
[363121253,1748590243351,-451.93,0.00021917,2]
[363121254,1748590243361,-420.0,0.00021917,2]
[363121255,1748590243371,-420.0,0.00021917,2]
[363121256,1748590243382,-1570.87,0.00021917,2]
[363121257,1748590243393,-420.0,0.00021917,2]
[363121258,1748590243403,-420.0,0.00021917,2]
[363121260,1748590243414,-420.0,0.00021917,2]
[363121262,1748590243423,-420.0,0.00021917,2]
[363121263,1748590243432,-420.0,0.00021917,2]
[363121264,1748590243442,-2431.8,0.00021917,2]
[363121265,1748590243451,-420.0,0.00021917,2]
[363121266,1748590243460,-420.0,0.00021917,2]
[363121267,1748590243470,-420.0,0.00021917,2]
[363121268,1748590243480,-503.19559115,0.00021917,2]
[363121269,1748590243496,-420.0,0.00021917,2]
[363121270,1748590243506,-762.5,0.00021917,2]
[363121271,1748590243515,-420.0,0.00021917,2]
[363121272,1748590243524,-420.0,0.00021917,2]
[363121273,1748590243534,-420.0,0.00021917,2]
[363121274,1748590243543,-500.0,0.00021917,2]
[363121275,1748590243553,-420.0,0.00021917,2]
[363121276,1748590243563,-500.0,0.00021917,2]
[363121277,1748590243572,-420.0,0.00021917,2]
[363121278,1748590243582,-500.0,0.00021917,2]
[363121279,1748590243593,-420.0,0.00021917,2]
[363121280,1748590243603,-1442.73,0.00021917,2]
[363121281,1748590243613,-420.0,0.00021917,2]
[363121282,1748590243623,-420.0,0.00021917,2]
[363121283,1748590243633,-420.0,0.00021917,2]
[363121284,1748590243643,-420.0,0.00021917,2]
[363121285,1748590243653,-420.0,0.00021917,2]
[363121286,1748590243663,-424.39540717,0.00021917,2]
[363121287,1748590243673,-654.14,0.00021917,2]
[363121288,1748590243683,-420.0,0.00021917,2]
[363121289,1748590243693,-420.0,0.00021917,2]
[363121290,1748590243703,-420.0,0.00021917,2]
[363121291,1748590243712,-420.0,0.00021917,2]
[363121292,1748590243723,-420.0,0.00021917,2]
[363121293,1748590243737,-420.0,0.00021917,2]
[363121294,1748590243747,-500.0,0.00021917,2]
[363121295,1748590243760,-1980.22,0.00021917,2]
[363121296,1748590243770,-420.0,0.00021917,2]
[363121297,1748590243781,-501.87152561,0.00021917,2]
[363121298,1748590243791,-420.0,0.00021917,2]
[363121299,1748590243801,-420.0,0.00021917,2]
[363121300,1748590243810,-366.49575701,0.00021917,2]
[363121301,1748590243819,-831.8,0.00021917,2]
[363121302,1748590243829,-505.68514956,0.00021917,2]
[363121303,1748590243839,-1252.08,0.00021917,2]
[363121304,1748590243848,-500.0,0.00021917,2]
[363121305,1748590243858,-510.61984279,0.00021917,2]
[363121307,1748590243868,-500.0,0.00021917,2]